bitfinex/quotes_SOLUSD_20241022
["timestamp","ask_amount","ask_price","bid_price","bid_amount"]
[1729633820566,11.55635887,167.32,167.26,20.0]
[1729633820766,11.55635887,167.31,167.26,20.0]
[1729633820977,11.55635887,167.3,167.26,20.0]
[1729633821163,11.55635887,167.29,167.26,20.0]
[1729633821367,4.44475341,167.28,167.26,20.0]
[1729633821553,5.9755,167.35,167.26,20.0]
[1729633821753,11.55677256,167.34,167.26,20.0]
[1729633821965,11.55677256,167.33,167.26,20.0]
[1729633822158,11.55677256,167.32,167.26,20.0]
[1729633822467,11.55677256,167.31,167.26,20.0]
[1729633822676,11.55677256,167.3,167.26,20.0]
[1729633822848,11.55677256,167.29,167.26,20.0]
[1729633823176,4.44491252,167.28,167.26,20.0]
[1729633823349,4.44491252,167.27,167.26,43.776884]
[1729633823775,4.44576188,167.27,167.26,43.776884]
[1729633824354,5.9755,167.35,167.26,43.776884]
[1729633824555,11.55949245,167.34,167.26,43.776884]
[1729633824870,11.55949245,167.33,167.26,43.776884]
[1729633825071,11.55949245,167.32,167.26,43.776884]
[1729633825267,11.55949245,167.31,167.26,43.776884]
[1729633825471,11.55949245,167.3,167.26,43.776884]
[1729633825673,11.55949245,167.29,167.26,43.776884]
[1729633825870,4.44595863,167.28,167.26,43.776884]
[1729633826168,4.44595863,167.27,167.26,43.776884]
[1729633826565,4.44595863,167.27,167.25,21.88814734]
[1729633826870,4.44595863,167.27,167.22,6.6009]
[1729633826871,5.9768,167.32,167.24,23.776884]
[1729633827074,11.56120859,167.31,167.24,45.66503134]
[1729633827272,11.56120859,167.3,167.24,45.66503134]
[1729633827655,4.44661869,167.29,167.24,45.66503134]
[1729633827857,4.44661869,167.28,167.24,45.66503134]
[1729633828052,5.9768,167.32,167.24,45.66503134]
[1729633828354,4.44666019,167.31,167.24,45.66503134]
[1729633828551,4.44666019,167.3,167.24,45.66503134]
[1729633828751,4.44666019,167.29,167.24,45.66503134]
[1729633828974,4.44666019,167.28,167.24,45.66503134]
[1729633829152,4.44666019,167.27,167.24,45.66503134]
[1729633829352,5.9768,167.32,167.24,45.66503134]
[1729633829651,11.56174528,167.31,167.24,45.66503134]
[1729633829851,11.56174528,167.3,167.24,45.66503134]
[1729633830064,11.56174528,167.29,167.24,45.66503134]
[1729633830267,4.44682511,167.28,167.24,45.66503134]
[1729633830470,4.44682511,167.27,167.24,45.66503134]
[1729633830657,5.9768,167.32,167.24,45.66503134]
[1729633830852,11.56089691,167.31,167.24,45.66503134]
[1729633831095,11.56089691,167.3,167.24,45.66503134]
[1729633831275,11.56089691,167.29,167.25,21.88814734]
[1729633831464,4.44649881,167.28,167.25,21.88814734]
[1729633831665,4.44649881,167.27,167.25,21.88814734]
[1729633831874,21.3197,167.34,167.25,21.88814734]
[1729633832193,11.56136327,167.33,167.25,21.88814734]
[1729633832475,11.56136327,167.32,167.25,21.88814734]
[1729633832673,11.56136327,167.31,167.25,21.88814734]
[1729633832973,11.56136327,167.3,167.25,21.88814734]
[1729633833168,11.56136327,167.29,167.25,21.88814734]
[1729633833375,4.44667818,167.28,167.25,21.88814734]
[1729633833677,4.44667818,167.27,167.25,21.88814734]
[1729633833876,5.9762,167.33,167.25,21.88814734]
[1729633834071,11.56134637,167.32,167.25,21.88814734]
[1729633834269,11.56134637,167.31,167.25,21.88814734]
[1729633834473,11.56134637,167.3,167.25,21.88814734]
[1729633834669,11.56134637,167.29,167.25,21.88814734]
[1729633834860,4.44667168,167.28,167.25,21.88814734]
[1729633835052,4.44667168,167.27,167.25,21.88814734]
[1729633835256,5.9762,167.33,167.25,21.88814734]
[1729633835471,11.5621064,167.32,167.25,21.88814734]
[1729633835776,11.5621064,167.31,167.25,21.88814734]
[1729633835976,11.5621064,167.3,167.25,21.88814734]
[1729633836178,11.5621064,167.29,167.25,21.88814734]
[1729633836397,4.446964,167.28,167.25,21.88814734]
[1729633836675,4.446964,167.27,167.25,21.88814734]
[1729633836882,5.9762,167.33,167.25,21.88814734]
[1729633837066,11.56419964,167.32,167.25,21.88814734]
[1729633837372,11.56419964,167.31,167.25,21.88814734]
[1729633837579,11.56419964,167.3,167.25,21.88814734]
[1729633837789,11.56419964,167.29,167.25,21.88814734]
[1729633837953,4.44776909,167.28,167.25,21.88814734]
[1729633838160,4.44776909,167.27,167.25,21.88814734]
[1729633838356,7.11663123,167.32,167.25,21.88814734]
[1729633838658,11.56452094,167.31,167.25,21.88814734]
[1729633838858,11.56451908,167.3,167.25,21.88814734]
[1729633839057,11.56451908,167.29,167.25,21.88814734]
[1729633839366,4.44789195,167.28,167.25,21.88814734]
[1729633839564,4.44789195,167.27,167.25,21.88814734]
[1729633839879,5.9762,167.33,167.25,21.88814734]
[1729633840178,11.56537084,167.32,167.25,21.88814734]
[1729633840357,11.56537084,167.31,167.26,20.0]
[1729633840558,11.56537084,167.3,167.26,20.0]
[1729633840760,11.56537084,167.29,167.26,20.0]
[1729633841062,4.44821955,167.28,167.26,20.0]
[1729633841280,4.44821955,167.27,167.26,20.0]
[1729633842268,5.9762,167.33,167.26,20.0]
[1729633842658,11.56723048,167.32,167.26,20.0]
[1729633842859,11.56723048,167.31,167.26,20.0]
[1729633843069,11.56723048,167.3,167.26,20.0]
[1729633843377,11.56723048,167.29,167.26,20.0]
[1729633843561,4.44893218,167.28,167.26,20.0]
[1729633843764,4.44893218,167.27,167.26,20.0]
[1729633846101,5.9762,167.33,167.25,21.88814734]
[1729633846382,11.56796742,167.32,167.25,21.88814734]
[1729633846568,11.56796742,167.31,167.25,21.88814734]
[1729633846770,11.56796742,167.3,167.25,21.88814734]
[1729633846958,11.56796742,167.29,167.25,21.88814734]
[1729633847160,4.4492251,167.28,167.25,21.88814734]
[1729633847360,4.4492251,167.27,167.25,21.88814734]
[1729633847559,5.9762,167.33,167.25,21.88814734]
[1729633847876,11.56801141,167.32,167.25,21.88814734]
[1729633848186,11.56801141,167.31,167.25,21.88814734]
[1729633848481,11.56801141,167.3,167.25,21.88814734]
[1729633848683,11.56801141,167.29,167.25,21.88814734]
[1729633848865,4.44923516,167.28,167.25,21.88814734]
[1729633849185,4.44923516,167.27,167.25,21.88814734]
[1729633849479,5.9762,167.33,167.25,21.88814734]
[1729633849781,11.56844031,167.32,167.25,21.88814734]
[1729633850287,16.01783865,167.31,167.25,21.88814734]
[1729633850586,11.56843853,167.3,167.25,21.88814734]
[1729633850757,11.56843853,167.29,167.25,21.88814734]
[1729633850961,4.44939943,167.28,167.25,21.88814734]
[1729633851167,4.44939943,167.27,167.25,21.88814734]
[1729633851368,5.9762,167.33,167.25,21.88814734]
[1729633851582,11.56868536,167.32,167.25,21.88814734]
[1729633851778,11.56868536,167.31,167.25,21.88814734]
[1729633851986,11.56868536,167.3,167.25,21.88814734]
[1729633852171,11.56868536,167.29,167.25,21.88814734]
[1729633852374,4.44949437,167.28,167.25,21.88814734]
[1729633852671,4.44949437,167.27,167.25,21.88814734]
[1729633852867,5.9762,167.33,167.25,21.88814734]
[1729633853066,11.56884604,167.32,167.25,21.88814734]
[1729633853280,11.56884604,167.31,167.25,21.88814734]
[1729633853482,11.56884604,167.3,167.25,21.88814734]
[1729633853685,11.56884604,167.29,167.25,21.88814734]
[1729633853884,4.44955617,167.28,167.25,21.88814734]
[1729633854088,4.44955617,167.27,167.25,21.88814734]
[1729633854268,5.9762,167.33,167.25,21.88814734]
[1729633854469,11.56842623,167.32,167.25,21.88814734]
[1729633854668,11.56842623,167.31,167.25,21.88814734]
[1729633854968,11.56842623,167.3,167.25,21.88814734]
[1729633855182,11.56842623,167.29,167.25,21.88814734]
[1729633855369,4.4493947,167.28,167.25,21.88814734]
[1729633855682,4.4493947,167.27,167.25,21.88814734]
[1729633855991,5.9762,167.33,167.25,21.88814734]
[1729633856192,11.5683567,167.32,167.25,21.88814734]
[1729633856490,11.5683567,167.31,167.25,21.88814734]
[1729633856664,11.5683567,167.3,167.25,21.88814734]
[1729633856860,11.5683567,167.29,167.25,21.88814734]
[1729633857073,4.44936796,167.28,167.25,21.88814734]
[1729633857268,4.44936796,167.27,167.25,21.88814734]
[1729633857590,5.9762,167.33,167.25,21.88814734]
[1729633857766,11.56845056,167.32,167.25,21.88814734]
[1729633857964,11.56845056,167.31,167.25,21.88814734]
[1729633858183,11.56845056,167.3,167.25,21.88814734]
[1729633858487,11.56845056,167.29,167.25,21.88814734]
[1729633858789,4.44940406,167.28,167.25,21.88814734]
[1729633858968,4.44940406,167.27,167.25,21.88814734]
[1729633859173,5.9762,167.33,167.25,21.88814734]
[1729633859370,11.56760555,167.32,167.25,21.88814734]
[1729633859583,11.56760555,167.31,167.25,21.88814734]
[1729633859762,11.56760555,167.3,167.25,21.88814734]
[1729633859967,11.56760555,167.29,167.25,21.88814734]
[1729633860167,4.44907906,167.28,167.25,21.88814734]
[1729633860385,4.44907906,167.27,167.25,21.88814734]
[1729633860587,5.9762,167.33,167.25,21.88814734]
[1729633860774,11.56752795,167.32,167.25,21.88814734]
[1729633861109,11.56752795,167.31,167.25,21.88814734]
[1729633861270,11.56752795,167.3,167.25,21.88814734]
[1729633861466,11.56752795,167.29,167.25,21.88814734]
[1729633861668,4.44904921,167.28,167.25,21.88814734]
[1729633861875,4.44904921,167.27,167.25,21.88814734]
[1729633862067,5.9762,167.33,167.25,21.88814734]
[1729633862268,11.56753846,167.32,167.25,21.88814734]
[1729633862483,11.56753846,167.31,167.25,21.88814734]
[1729633862669,11.56753846,167.3,167.24,23.776884]
[1729633862885,11.56753846,167.29,167.25,20.0]
[1729633863085,4.44905325,167.28,167.25,20.0]
[1729633863394,4.44905325,167.27,167.25,20.0]
[1729633863573,5.9762,167.33,167.25,20.0]
[1729633863897,11.56411261,167.32,167.25,20.0]
[1729633864075,11.56411261,167.31,167.25,20.0]
[1729633864277,11.56411261,167.3,167.25,20.0]
[1729633864474,11.56411261,167.29,167.25,20.0]
[1729633864680,4.44773562,167.28,167.25,20.0]
[1729633864876,4.44773562,167.27,167.25,20.0]
[1729633865070,5.9762,167.33,167.25,20.0]
[1729633865271,11.56050317,167.32,167.25,20.0]
[1729633865565,11.56050317,167.31,167.25,20.0]
[1729633865765,11.56050317,167.3,167.25,20.0]
[1729633865997,11.56050317,167.29,167.25,20.0]
[1729633866171,4.44634737,167.28,167.25,20.0]
[1729633866371,4.44634737,167.27,167.25,20.0]
[1729633866567,5.9762,167.33,167.25,20.0]
[1729633866796,11.55897504,167.32,167.25,20.0]
[1729633866997,11.55897504,167.31,167.25,20.0]
[1729633867294,11.55897504,167.3,167.25,20.0]
[1729633867474,11.55897504,167.29,167.25,20.0]
[1729633867676,4.44575963,167.28,167.25,20.0]
[1729633867884,4.44575963,167.27,167.25,20.0]
[1729633868097,5.9762,167.33,167.25,20.0]
[1729633868283,11.55888491,167.32,167.25,20.0]
[1729633868609,11.55888491,167.31,167.25,20.0]
[1729633868787,11.55888491,167.3,167.25,20.0]
[1729633869084,11.55888491,167.29,167.25,20.0]
[1729633869393,4.44572496,167.28,167.25,20.0]
[1729633869701,4.44572496,167.27,167.25,20.0]
[1729633869882,5.9762,167.33,167.25,20.0]
[1729633870083,11.55838188,167.32,167.25,20.0]
[1729633870285,11.55838188,167.31,167.25,20.0]
[1729633870492,11.55845845,167.3,167.25,20.0]
[1729633870675,11.55845845,167.29,167.25,20.0]
[1729633870880,4.44556094,167.28,167.25,20.0]
[1729633871492,4.44556094,167.27,167.25,20.0]
[1729633871808,5.9762,167.33,167.25,20.0]
[1729633871979,11.5562595,167.32,167.25,20.0]
[1729633872300,11.5562595,167.31,167.25,20.0]
[1729633872600,11.5562595,167.3,167.25,20.0]
[1729633872803,11.5562595,167.29,167.25,20.0]
[1729633872986,4.44471519,167.28,167.25,20.0]
[1729633873304,4.44471519,167.27,167.25,20.0]
[1729633873477,5.9762,167.33,167.25,20.0]
[1729633873677,4.44461699,167.32,167.25,20.0]
[1729633873878,4.44461699,167.31,167.25,20.0]
[1729633874084,4.44461699,167.3,167.25,20.0]
[1729633874286,5.9762,167.33,167.25,20.0]
[1729633874484,4.44461876,167.32,167.25,20.0]
[1729633874687,4.44461876,167.31,167.25,20.0]
[1729633874888,4.44461876,167.3,167.25,20.0]
[1729633875090,5.9762,167.33,167.25,20.0]
[1729633875386,4.44461062,167.32,167.25,20.0]
[1729633875586,4.44461062,167.31,167.25,20.0]
[1729633875793,4.44461062,167.3,167.25,20.0]
[1729633875995,5.9762,167.33,167.25,20.0]
[1729633876188,4.44877432,167.32,167.25,20.0]
[1729633876505,4.44877432,167.31,167.25,20.0]
[1729633876708,4.44877432,167.3,167.25,20.0]
[1729633876910,5.9762,167.33,167.25,20.0]
[1729633877085,4.44871342,167.32,167.25,20.0]
[1729633877392,4.44871342,167.31,167.25,20.0]
[1729633877702,4.44871342,167.3,167.25,20.0]
[1729633877883,5.9762,167.33,167.25,20.0]
[1729633878078,4.44836999,167.32,167.25,20.0]
[1729633878285,4.44836999,167.31,167.25,20.0]
[1729633878587,4.44836999,167.3,167.25,20.0]
[1729633878789,5.9762,167.33,167.25,20.0]
[1729633878997,4.44822295,167.32,167.25,20.0]
[1729633879284,4.44822295,167.31,167.25,20.0]
[1729633879488,4.44822295,167.3,167.25,20.0]
[1729633879691,5.9762,167.33,167.25,20.0]
[1729633879884,4.44921109,167.32,167.25,20.0]
[1729633880190,4.44921109,167.31,167.25,20.0]
[1729633880388,4.44921109,167.3,167.25,20.0]
[1729633880593,5.9762,167.33,167.25,20.0]
[1729633880800,4.44860927,167.32,167.25,20.0]
[1729633881004,4.44860927,167.31,167.25,20.0]
[1729633881199,4.44860927,167.3,167.25,20.0]
[1729633881393,5.9762,167.33,167.25,20.0]
[1729633881701,4.44885931,167.32,167.25,20.0]
[1729633882001,4.44885931,167.31,167.25,20.0]
[1729633882191,4.44885931,167.3,167.25,20.0]
[1729633882388,5.9762,167.33,167.25,20.0]
[1729633882587,4.4489022,167.32,167.25,20.0]
[1729633882795,4.4489022,167.31,167.25,20.0]
[1729633883087,4.4489022,167.3,167.25,20.0]
[1729633883288,5.9762,167.33,167.25,20.0]
[1729633883491,4.44912911,167.32,167.25,20.0]
[1729633883693,4.44912911,167.31,167.25,20.0]
[1729633884019,4.44912911,167.3,167.25,20.0]
[1729633884325,5.9762,167.33,167.25,20.0]
[1729633884607,4.44952512,167.32,167.25,20.0]
[1729633884822,4.44952512,167.31,167.25,20.0]
[1729633884985,4.44952512,167.32,167.25,20.0]
[1729633885188,5.9762,167.33,167.25,20.0]
[1729633885709,4.4533689,167.32,167.25,20.0]
[1729633885893,4.4533689,167.31,167.25,20.0]
[1729633886204,4.4533689,167.3,167.25,20.0]
[1729633886389,5.9762,167.33,167.25,20.0]
[1729633886591,4.45429724,167.32,167.25,20.0]
[1729633886888,4.45429724,167.31,167.25,20.0]
[1729633887101,4.45429724,167.3,167.25,20.0]
[1729633887409,5.9762,167.33,167.25,20.0]
[1729633887611,4.45406744,167.32,167.25,20.0]
[1729633887797,4.45406744,167.31,167.25,20.0]
[1729633888102,5.9762,167.33,167.25,20.0]
[1729633888305,4.45452991,167.32,167.25,20.0]
[1729633888497,5.9762,167.33,167.25,20.0]
[1729633888801,4.45369745,167.31,167.25,20.0]
[1729633889003,5.9762,167.33,167.25,20.0]
[1729633889206,4.45371318,167.32,167.25,20.0]
[1729633889805,4.45371318,167.31,167.25,20.0]
[1729633890085,5.9762,167.33,167.25,20.0]
[1729633890302,4.45273411,167.32,167.25,20.0]
[1729633890502,4.45273411,167.31,167.25,20.0]
[1729633890806,5.9762,167.33,167.25,20.0]
[1729633890987,4.45274531,167.32,167.25,20.0]
[1729633891303,4.45274531,167.31,167.25,20.0]
[1729633891494,5.9762,167.33,167.25,20.0]
[1729633891692,4.45242447,167.32,167.25,20.0]
[1729633891895,4.45242447,167.31,167.25,20.0]
[1729633892089,5.9762,167.33,167.25,20.0]
[1729633892290,4.45207247,167.32,167.25,20.0]
[1729633892488,5.9762,167.33,167.25,20.0]
[1729633892692,4.45207189,167.32,167.25,20.0]
[1729633892899,4.45207189,167.31,167.25,20.0]
[1729633893101,5.9762,167.33,167.25,20.0]
[1729633893294,4.45177516,167.32,167.25,20.0]
[1729633893495,4.45177516,167.31,167.25,20.0]
[1729633893698,5.9762,167.33,167.25,20.0]
[1729633893896,4.45195396,167.32,167.25,20.0]
[1729633894098,4.45195396,167.31,167.23,20.0]
[1729633894509,4.45195396,167.31,167.23,41.88814734]
[1729633894704,5.9773,167.3,167.2,20.0]
[1729633895014,10.42973301,167.29,167.2,21.88814734]
[1729633895311,5.9779,167.29,167.2,21.88814734]
[1729633895488,5.978,167.28,167.21,21.88814734]
[1729633896607,5.978,167.28,167.22,20.0]
[1729633897715,5.978,167.28,167.22,41.88814734]
[1729633898623,6.1151,167.3,167.22,41.88814734]
[1729633898815,4.44874582,167.29,167.22,41.88814734]
[1729633898997,6.1151,167.3,167.22,41.88814734]
[1729633899203,4.44877262,167.29,167.23,21.88814734]
[1729633899405,5.9769,167.31,167.23,21.88814734]
[1729633899724,10.42589682,167.3,167.23,21.88814734]
[1729633899891,5.9776,167.3,167.23,21.88814734]
[1729633900091,15.6124,167.32,167.23,21.88814734]
[1729633900092,10.42587996,167.29,167.23,10.93575271]
[1729633900292,5.9776,167.29,167.23,21.88814734]
[1729633901895,5.9773,167.3,167.23,21.88814734]
[1729633913697,15.6124,167.32,167.2,96.61683665]
[1729633913698,5.9769,167.31,167.2,96.61683665]
[1729633914002,4.44604252,167.3,167.23,21.88814734]
[1729633914210,5.9769,167.31,167.23,21.88814734]
[1729633914414,4.44600155,167.3,167.23,21.88814734]
[1729633914611,5.9769,167.31,167.23,21.88814734]
[1729633914800,4.44604258,167.3,167.23,21.88814734]
[1729633915008,5.9769,167.31,167.23,21.88814734]
[1729633915221,4.44605405,167.3,167.23,21.88814734]
[1729633915422,5.9769,167.31,167.23,21.88814734]
[1729633915612,4.44608958,167.3,167.24,41.88814734]
[1729633915813,5.9764,167.33,167.26,20.0]
[1729633916134,4.44633886,167.32,167.26,20.0]
[1729633916328,5.9764,167.33,167.26,20.0]
[1729633916519,4.44643704,167.32,167.26,20.0]
[1729633916714,4.44638245,167.31,167.27,21.88814734]
[1729633917020,12.21743598,167.35,167.27,21.88814734]
[1729633917222,4.44648363,167.34,167.27,21.88814734]
[1729633917417,4.44648363,167.33,167.27,21.88814734]
[1729633917633,4.44648363,167.32,167.28,20.0]
[1729633917929,12.21743598,167.35,167.28,20.0]
[1729633918115,4.44668073,167.34,167.28,20.0]
[1729633918427,4.44668073,167.33,167.28,20.0]
[1729633918637,4.44668073,167.32,167.28,20.0]
[1729633918821,8.89342277,167.32,167.28,20.0]
[1729633919012,12.21743598,167.35,167.28,20.0]
[1729633919331,4.4467273,167.34,167.28,20.0]
[1729633919536,4.4467273,167.33,167.28,20.0]
[1729633919843,4.4467273,167.32,167.27,20.0]
[1729633920136,12.21743598,167.35,167.27,20.0]
[1729633920303,4.44667699,167.34,167.27,20.0]
[1729633920503,4.44667699,167.33,167.27,20.0]
[1729633920699,4.44667699,167.32,167.27,20.0]
[1729633920927,12.21743598,167.35,167.27,20.0]
[1729633921150,4.44658071,167.34,167.27,20.0]
[1729633921335,4.44658071,167.34,167.27,41.88814734]
[1729633921502,4.44658071,167.33,167.27,41.88814734]
[1729633921709,4.44658071,167.32,167.27,41.88814734]
[1729633921907,12.21743598,167.35,167.27,41.88814734]
[1729633922120,4.44506142,167.34,167.27,41.88814734]
[1729633922325,4.44506142,167.33,167.27,41.88814734]
[1729633922525,4.44506142,167.32,167.27,41.88814734]
[1729633922723,4.44506142,167.32,167.24,16.544]
[1729633922724,12.21743598,167.35,167.25,20.0]
[1729633922908,4.4446718,167.34,167.27,20.0]
[1729633923226,4.4446718,167.33,167.27,20.0]
[1729633923526,12.21743598,167.35,167.27,20.0]
[1729633923724,4.44455588,167.34,167.27,20.0]
[1729633924024,4.44455588,167.33,167.27,20.0]
[1729633924229,12.21743598,167.35,167.27,20.0]
[1729633924407,4.44444033,167.34,167.27,20.0]
[1729633924608,12.21743598,167.35,167.27,20.0]
[1729633924826,4.44444903,167.34,167.27,20.0]
[1729633926231,4.44444903,167.34,167.26,21.88814734]
[1729633926737,4.44444903,167.34,167.25,21.88814734]
[1729633927524,4.44444903,167.34,167.26,20.0]
[1729633927726,10.42024903,167.34,167.26,20.0]
[1729633927925,4.44444903,167.33,167.26,20.0]
[1729633928553,5.9758,167.34,167.26,20.0]
[1729633928911,4.45527537,167.32,167.26,20.0]
[1729633932044,4.45527537,167.32,167.25,20.0]
[1729633933258,4.45321478,167.31,167.25,20.0]
[1729633933423,4.45527537,167.32,167.25,20.0]
[1729633933721,4.453385,167.31,167.25,20.0]
[1729633933920,4.45527537,167.32,167.25,20.0]
[1729633934930,4.45527537,167.32,167.25,41.88814734]
[1729633938844,5.9759,167.34,167.25,41.88814734]
[1729633939044,4.45261759,167.33,167.25,41.88814734]
[1729633939420,4.45261759,167.32,167.25,41.88814734]
[1729633939619,5.9758,167.34,167.25,41.88814734]
[1729633940346,4.45266188,167.33,167.25,41.88814734]
[1729633940543,4.45266188,167.32,167.25,41.88814734]
[1729633940721,5.9758,167.34,167.25,41.88814734]
[1729633941040,4.4528328,167.33,167.25,41.88814734]
[1729633941225,4.4528328,167.32,167.25,41.88814734]
[1729633941433,5.9758,167.34,167.25,41.88814734]
[1729633941631,4.45278073,167.33,167.25,41.88814734]
[1729633941838,4.45278073,167.32,167.25,41.88814734]
[1729633942043,5.9758,167.34,167.25,41.88814734]
[1729633942239,4.45285771,167.33,167.25,41.88814734]
[1729633942439,4.45285771,167.32,167.25,41.88814734]
[1729633942648,5.9758,167.34,167.25,41.88814734]
[1729633942944,4.45305967,167.33,167.25,41.88814734]
[1729633943334,4.45305967,167.32,167.25,41.88814734]
[1729633943530,12.21743598,167.35,167.25,41.88814734]
[1729633943744,4.4531812,167.34,167.25,41.88814734]
[1729633944040,4.4531812,167.33,167.25,41.88814734]
[1729633944224,12.21743598,167.35,167.25,41.88814734]
[1729633944225,4.4531812,167.32,167.25,41.88814734]
[1729633944551,12.21743598,167.35,167.25,41.88814734]
[1729633944855,4.45329537,167.34,167.25,41.88814734]
[1729633945033,4.45329537,167.33,167.25,41.88814734]
[1729633945228,12.21743598,167.35,167.25,41.88814734]
[1729633945533,4.45362433,167.34,167.25,41.88814734]
[1729633950354,12.21743598,167.35,167.25,41.88814734]
[1729633950851,4.45430496,167.34,167.25,41.88814734]
[1729633951052,4.45430496,167.33,167.25,41.88814734]
[1729633951732,4.45430496,167.32,167.25,41.88814734]
[1729633951933,4.45430496,167.31,167.25,41.88814734]
[1729633952142,12.21743598,167.35,167.25,41.88814734]
[1729633952344,4.45477849,167.34,167.25,41.88814734]
[1729633952538,4.45477849,167.33,167.25,41.88814734]
[1729633952736,4.45477849,167.32,167.25,41.88814734]
[1729633952953,4.45477849,167.31,167.25,41.88814734]
[1729633953147,12.21743598,167.35,167.25,41.88814734]
[1729633953347,4.45512482,167.34,167.25,41.88814734]
[1729633953654,4.45512482,167.33,167.25,41.88814734]
[1729633953848,4.45512482,167.32,167.25,41.88814734]
[1729633954051,12.21743598,167.35,167.25,41.88814734]
[1729633954360,4.45519513,167.34,167.25,41.88814734]
[1729633955739,4.45519513,167.33,167.25,41.88814734]
[1729633955951,4.45519513,167.32,167.25,41.88814734]
[1729633956161,4.45519513,167.31,167.25,41.88814734]
[1729633956356,12.21743598,167.35,167.25,41.88814734]
[1729633956654,4.45508691,167.34,167.25,41.88814734]
[1729633956950,4.45508691,167.33,167.25,41.88814734]
[1729633957161,4.45508691,167.32,167.25,41.88814734]
[1729633957452,4.45508691,167.31,167.25,41.88814734]
[1729633957652,12.21743598,167.35,167.25,41.88814734]
[1729633957854,4.45569876,167.34,167.25,41.88814734]
[1729633958071,4.45569876,167.33,167.25,41.88814734]
[1729633958229,4.45569876,167.32,167.25,41.88814734]
[1729633958429,4.45569876,167.31,167.25,41.88814734]
[1729633958633,12.21743598,167.35,167.25,41.88814734]
[1729633958853,4.4565774,167.34,167.25,41.88814734]
[1729633959040,4.4565774,167.33,167.25,41.88814734]
[1729633959246,4.4565774,167.32,167.25,41.88814734]
[1729633959447,4.4565774,167.31,167.25,41.88814734]
[1729633959646,5.9758,167.34,167.25,41.88814734]
[1729633959840,4.45719876,167.33,167.25,41.88814734]
[1729633960040,4.45719876,167.32,167.25,41.88814734]
[1729633960230,4.45719876,167.31,167.25,41.88814734]
[1729633960435,5.9758,167.34,167.25,41.88814734]
[1729633960648,4.45789936,167.33,167.25,41.88814734]
[1729633960832,4.45789936,167.32,167.25,41.88814734]
[1729633961041,4.45789936,167.31,167.25,41.88814734]
[1729633961236,5.9758,167.34,167.25,41.88814734]
[1729633961441,4.45888311,167.33,167.25,41.88814734]
[1729633961641,4.45888311,167.32,167.25,41.88814734]
[1729633961846,4.45888311,167.31,167.25,41.88814734]
[1729633962233,4.45888311,167.3,167.25,41.88814734]
[1729633962437,5.9758,167.34,167.25,41.88814734]
[1729633962661,4.45899898,167.33,167.25,41.88814734]
[1729633962837,4.45899898,167.32,167.25,41.88814734]
[1729633963036,4.45899898,167.31,167.25,41.88814734]
[1729633963241,4.45899898,167.3,167.25,41.88814734]
[1729633963439,5.9758,167.34,167.25,41.88814734]
[1729633963639,4.45971154,167.33,167.25,41.88814734]
[1729633963857,4.45971154,167.32,167.25,41.88814734]
[1729633964046,4.45971154,167.31,167.25,41.88814734]
[1729633964245,4.45971154,167.3,167.25,41.88814734]
[1729633964445,5.9758,167.34,167.25,41.88814734]
[1729633964750,4.45996245,167.33,167.25,41.88814734]
[1729633965046,4.45996245,167.32,167.25,41.88814734]
[1729633965249,4.45996245,167.31,167.25,41.88814734]
[1729633965445,4.45996245,167.3,167.25,41.88814734]
[1729633965646,5.9758,167.34,167.25,41.88814734]
[1729633965847,4.45994842,167.33,167.25,41.88814734]
[1729633966146,4.45994842,167.32,167.25,41.88814734]
[1729633966346,4.45994842,167.31,167.25,41.88814734]
[1729633966654,4.45994842,167.3,167.25,41.88814734]
[1729633966961,5.9758,167.34,167.25,41.88814734]
[1729633967167,4.46001115,167.33,167.25,41.88814734]
[1729633967352,4.46001115,167.32,167.25,41.88814734]
[1729633967552,4.46001115,167.31,167.25,41.88814734]
[1729633967760,4.46001115,167.3,167.25,41.88814734]
[1729633967946,5.9758,167.34,167.25,41.88814734]
[1729633968144,4.46004896,167.33,167.25,41.88814734]
[1729633968349,4.46004896,167.32,167.25,41.88814734]
[1729633968544,5.9758,167.34,167.25,41.88814734]
[1729633968749,4.460035,167.33,167.25,41.88814734]
[1729633968959,5.9758,167.34,167.25,41.88814734]
[1729633968960,4.460035,167.32,167.25,41.88814734]
[1729633969158,4.460035,167.31,167.25,41.88814734]
[1729633969344,4.460035,167.3,167.25,41.88814734]